lending/lending_fUSD_20250501
["ID","MTS","AMOUNT","RATE_DAILY","PERIOD"]
[359534870,1746096638439,-500.0,0.000199,2]
[359534872,1746096638450,-18240.8769,0.000199,2]
[359534874,1746096638459,-1000.0,0.000199,2]
[359534876,1746096638468,-506.29141492,0.00019973,2]
[359534877,1746096638477,-500.0,0.00019973,2]
[359534878,1746096638486,-624.94468854,0.00019973,2]
[359534879,1746096638495,-500.0,0.00019973,2]
[359534880,1746096638504,-498.7842668,0.00019973,2]
[359534881,1746096638514,-511.93284645,0.00019973,2]
[359534882,1746096638523,-15794.46611029,0.00019986,2]
[359535004,1746096639877,-158257.48042521,0.00019986,2]
[359535006,1746096639886,-161.89414528,0.0001999,2]
[359535008,1746096639896,-1029991.77046218,0.0002,2]
[359535010,1746096639905,-396.16628054,0.0002,2]
[359535027,1746096640055,-200.0,0.0002,2]
[359535029,1746096640069,-1500.0,0.0002009,2]
[359535031,1746096640079,-250.0,0.00020136,2]
[359535033,1746096640088,-200.0,0.00020193,2]
[359535035,1746096640097,-200.0,0.000202,2]
[359535037,1746096640107,-200.0,0.00020402,2]
[359535039,1746096640115,-191.42378398,0.00020428,2]
[359535041,1746096640125,-2697.52,0.00020541,2]
[359535042,1746096640134,-200.0,0.00020606,2]
[359535044,1746096640143,-150.0,0.00020628,2]
[359535046,1746096640152,-245.95,0.0002064,2]
[359535048,1746096640161,-1000.0,0.00020671,2]
[359535050,1746096640171,-181.0,0.00020685,2]
[359535052,1746096640180,-2471.98,0.00020726,2]
[359535054,1746096640192,-4410.76,0.00020728,2]
[359535056,1746096640201,-1355.24,0.00020751,2]
[359535058,1746096640211,-1624.5,0.00020806,2]
[359535060,1746096640220,-200.0,0.00020812,2]
[359535062,1746096640230,-200.0,0.00020841,2]
[359535064,1746096640239,-10932.72,0.00020876,2]
[359535066,1746096640248,-3206.96665013,0.000209,4]
[359535068,1746096640257,-304.01,0.00020933,2]
[359535070,1746096640267,-300.57,0.00020933,2]
[359535072,1746096640276,-304.44,0.00020933,2]
[359535074,1746096640285,-303.14,0.00020933,2]
[359535076,1746096640294,-304.94,0.00020933,2]
[359535078,1746096640304,-301.6,0.00020933,2]
[359535080,1746096640313,-304.65,0.00020933,2]
[359535082,1746096640323,-301.27,0.00020933,2]
[359535084,1746096640332,-305.23,0.00020933,2]
[359535086,1746096640342,-305.34,0.00020933,2]
[359535088,1746096640352,-500.0,0.00020933,2]
[359535089,1746096640361,-501.06029694,0.00020933,2]
[359535091,1746096640369,-500.0,0.00020933,2]
[359535093,1746096640378,-278.22,0.00020947,2]
[359535095,1746096640388,-300.92,0.00020993,2]
[359535097,1746096640397,-114551.64498929,0.00021,2]
[359535099,1746096640406,-350.0,0.00021,2]
[359535101,1746096640415,-500.0,0.00021,2]
[359535103,1746096640425,-500.0,0.00021,2]
[359535105,1746096640435,-500.0,0.00021,2]
[359535107,1746096640444,-500.0,0.00021,2]
[359535109,1746096640454,-500.0,0.00021,2]
[359535111,1746096640464,-474.51724359,0.00021,2]
[359535113,1746096640474,-500.0,0.00021,2]
[359535115,1746096640484,-500.0,0.00021,2]
[359535117,1746096640493,-500.0,0.00021,2]
[359535119,1746096640502,-500.0,0.00021,2]
[359535121,1746096640511,-500.0,0.00021,2]
[359535123,1746096640520,-500.68481339,0.00021,2]
[359535125,1746096640530,-500.0,0.00021,2]
[359535127,1746096640539,-305.43,0.00021,2]
[359535129,1746096640551,-892.92,0.00021006,2]
[359535131,1746096640560,-195.0,0.00021354,2]
[359535133,1746096640569,-5122.4,0.0002137,2]
[359535135,1746096640578,-200.0,0.00021378,2]
[359535137,1746096640588,-250.0,0.00021378,2]
[359535139,1746096640597,-1680.0,0.00021458,2]
[359535141,1746096640606,-1000.0,0.00021644,2]
[359535142,1746096640616,-3206.96664989,0.00021762,5]
[359535144,1746096640626,-380.45176942,0.000218,2]
[359535146,1746096640635,-1112.69348194,0.00021842,2]
[359535148,1746096640645,-150.0,0.00021917,2]
[359535150,1746096640654,-300.0,0.0002194,2]
[359535152,1746096640663,-500.0,0.00022,2]
[359535154,1746096640672,-456.0,0.00022,2]
[359535156,1746096640682,-278.22,0.0002205,2]
[359535158,1746096640691,-159.0,0.0002243,2]
[359535160,1746096640700,-265.74835313,0.0002243,2]
[359535162,1746096640710,-3206.96664989,0.00022624,7]
[359535164,1746096640719,-166.66,0.00022797,2]
[359535166,1746096640729,-1699.41217958,0.00022905,2]
[359535168,1746096640738,-501.61179285,0.00022973,2]
[359535170,1746096640747,-500.0,0.00022973,2]
[359535172,1746096640757,-500.0,0.00022973,2]
[359535174,1746096640766,-300.0,0.00022973,2]
[359535176,1746096640776,-320238.0,0.00023,2]
[359535178,1746096640786,-400.0,0.00023,2]
[359535180,1746096640794,-278.22,0.00023152,2]
[359535182,1746096640803,-1000.0,0.00023255,2]
[359535183,1746096640812,-892.92,0.0002327,2]
[359535185,1746096640821,-150.0,0.00023287,2]
[359535187,1746096640831,-300.0,0.0002331,2]
[359535189,1746096640840,-29999.99,0.00023368,2]
[359535191,1746096640850,-3206.96664989,0.00023486,9]
[359535193,1746096640859,-2351.0,0.00023487,2]
[359535195,1746096640868,-200.68964993,0.00023521,2]
[359535197,1746096640878,-166.66,0.00023549,2]
[359535199,1746096640888,-810.21,0.00023836,2]
[359535201,1746096640898,-1112.69348194,0.00023928,2]
[359535203,1746096640908,-1834.0,0.00024,2]
[359535205,1746096640917,-434.96,0.00024174,2]
[359535207,1746096640927,-435.68,0.00024174,2]
[359535209,1746096640937,-694.02,0.00024174,2]
[359535211,1746096640946,-999.99,0.00024174,2]
[359535213,1746096640956,-1010.78,0.00024174,2]
[359535215,1746096640966,-499.99,0.00024174,2]
[359535217,1746096640977,-4568.68,0.00024174,2]
[359535219,1746096640987,-150.99,0.00024174,2]
[359535221,1746096640997,-161.89414524,0.00024246,2]
[359535223,1746096641007,-278.22,0.00024255,2]
[359535225,1746096641017,-166.66,0.00024302,2]
[359535227,1746096641027,-3206.96664989,0.00024348,11]
[359535229,1746096641039,-191.42378396,0.00024616,2]
[359535231,1746096641048,-150.0,0.00024657,2]
[359535233,1746096641058,-1922.0,0.00024658,2]
[359535235,1746096641068,-1000.0,0.00024658,2]
[359535237,1746096641077,-500.0,0.0002474,2]
[359535239,1746096641087,-151.0,0.000248,7]
[359535241,1746096641097,-151.0,0.000248,7]
[359535243,1746096641107,-151.0,0.000248,7]
[359535245,1746096641116,-151.0,0.000248,7]
[359535247,1746096641126,-163.257342,0.000248,7]
[359535249,1746096641135,-151.0,0.000248,7]
[359535251,1746096641144,-27301.1773535,0.000248,2]
[359535253,1746096641154,-168.611437,0.0002485,3]
[359535255,1746096641164,-525625.253629,0.000249,2]
[359535257,1746096641173,-257.03117795,0.00025,2]
[359535259,1746096641184,-450.0,0.00025,2]
[359535261,1746096641195,-189743.0,0.00025,2]
[359535263,1746096641205,-166.66,0.00025054,2]
[359535265,1746096641214,-3206.96664989,0.0002521,12]
[359535267,1746096641224,-278.22,0.00025357,2]
[359535269,1746096641234,-214.88975929,0.00025452,2]
[359535271,1746096641243,-5569.0,0.000255,3]
[359535273,1746096641253,-892.92,0.00025533,2]
[359535275,1746096641262,-3292.0,0.00025709,2]
[359535277,1746096641271,-166.66,0.00025807,2]
[359535279,1746096641281,-1000.0,0.00025839,2]
[359535281,1746096641291,-5569.0,0.000259,5]
[359535283,1746096641300,-1112.69348194,0.00026014,2]
[359535285,1746096641310,-150.0,0.00026027,2]
[359535287,1746096641319,-3206.96664989,0.00026072,14]
[359535289,1746096641329,-1019.0,0.00026301,5]
[359535291,1746096641339,-503.06857668,0.00026413,2]
[359535293,1746096641348,-931.81498311,0.00026413,2]
[359535295,1746096641357,-278.22,0.0002646,2]
[359535297,1746096641366,-1003.55822071,0.00026479,2]
[359535299,1746096641376,-1003.85916262,0.00026479,2]
[359535301,1746096641386,-1000.0,0.00026479,2]
[359535303,1746096641395,-507.79745625,0.00026479,2]
[359535305,1746096641405,-177.75275273,0.00026479,2]
[359535307,1746096641414,-502.20572104,0.00026479,2]
[359535309,1746096641425,-1000.0,0.00026479,2]
[359535311,1746096641435,-407.34403053,0.00026479,2]
[359535313,1746096641444,-1000.0,0.00026479,2]
[359535315,1746096641454,-1000.0,0.00026479,2]
[359535317,1746096641463,-873.44,0.000265,2]
[359535319,1746096641472,-166.66,0.00026559,2]
[359535321,1746096641482,-3206.96664989,0.00026934,16]
[359535323,1746096641493,-500.0,0.00027,2]
[359535325,1746096641503,-264.0,0.0002723,2]
[359535327,1746096641511,-150.0,0.00027397,2]
[359535329,1746096641521,-500.0,0.00027397,2]
[359535331,1746096641531,-322.9785544,0.00027397,2]
[359535333,1746096641540,-151.0,0.00027397,7]
[359535335,1746096641549,-300.0,0.00027397,2]
[359535337,1746096641558,-1000.0,0.00027397,2]
[359535339,1746096641568,-278.22,0.00027562,2]
[359535341,1746096641577,-609.0,0.00027566,5]
[359535343,1746096641586,-3206.96664989,0.00027797,17]
[359535344,1746096641595,-892.92,0.00027797,2]
[359535345,1746096641605,-1112.69348194,0.000281,2]
[359535346,1746096641614,-558.0,0.00028141,2]
[359535347,1746096641623,-264.0,0.000282,2]
[359535348,1746096641632,-1000.0,0.00028422,2]
[359535349,1746096641641,-1002.31288123,0.00028452,5]
[359535350,1746096641650,-505.53479803,0.00028452,5]
[359535351,1746096641660,-161.89414524,0.00028502,2]
[359535352,1746096641669,-3206.96664989,0.00028659,19]
[359535353,1746096641678,-278.22,0.00028665,2]
[359535354,1746096641687,-150.0,0.00028767,2]
[359535355,1746096641696,-191.42378396,0.00028804,2]
[359535356,1746096641705,-6797.84100435,0.00029,2]
[359535357,1746096641714,-54907.06774504,0.00029,2]
[359535358,1746096641725,-386.78279525,0.00029,6]
[359535359,1746096641733,-260.31776711,0.00029,2]
[359535360,1746096641742,-156.051641,0.00029,7]
[359535361,1746096641751,-174.735767,0.00029,7]
[359535376,1746096641885,-151.0,0.00029,7]
[359535378,1746096641895,-151.0,0.00029,7]
[359535380,1746096641903,-151.0,0.00029,7]
[359535382,1746096641912,-550.0,0.00029,2]
[359535384,1746096641921,-1355.24,0.00029051,2]
[359535386,1746096641931,-264.0,0.0002916,2]
[359535388,1746096641940,-3206.96664989,0.00029521,21]
[359535390,1746096641950,-278.22,0.00029767,2]
[359535392,1746096641959,-11072.45124997,0.0002991,2]
[359535394,1746096641968,-1158.44044072,0.0003,10]
[359535396,1746096641978,-1246.67556792,0.0003,2]
[359535398,1746096641987,-213.0,0.0003,2]
[359535400,1746096641997,-892.92,0.00030061,2]
[359535402,1746096642006,-10497.66,0.0003011,2]
[359535404,1746096642016,-264.0,0.0003013,2]
[359535406,1746096642025,-150.0,0.00030136,2]
[359535408,1746096642038,-610.0,0.00030137,2]
[359535410,1746096642047,-150.0,0.00030137,2]
[359535412,1746096642057,-706.0,0.00030137,5]
[359535414,1746096642066,-166.36249429,0.00030137,2]
[359535416,1746096642076,-1112.69348194,0.00030186,2]
[359535418,1746096642085,-3206.96664989,0.00030383,22]
[359535420,1746096642095,-151.0,0.0003082,2]
[359535422,1746096642104,-207.4,0.0003082,2]
[359535424,1746096642114,-150.0,0.0003093,2]
[359535426,1746096642124,-600.0,0.00031,2]
[359535428,1746096642133,-1000.0,0.00031006,2]
[359535430,1746096642143,-264.0,0.000311,2]
[359535432,1746096642153,-3206.96664989,0.00031245,24]
[359535434,1746096642163,-313.29156098,0.000314,30]
[359535436,1746096642172,-150.0,0.00031506,2]
[359535438,1746096642182,-150.0,0.00031723,2]
[359535440,1746096642192,-169.05,0.00031733,2]
[359535442,1746096642202,-1533.56696301,0.00032,2]
[359535444,1746096642212,-264.0,0.0003206,2]
[359535447,1746096642224,-3206.96664989,0.00032107,26]
[359535449,1746096642234,-151.0,0.00032189,2]
[359535451,1746096642244,-215.0738,0.00032189,2]
[359535453,1746096642253,-1112.69348194,0.00032272,2]
[359535455,1746096642263,-892.92,0.00032325,2]
[359535456,1746096642272,-150.0,0.00032516,2]
[359535458,1746096642281,-163.0,0.000327,39]
[359535460,1746096642291,-161.89414524,0.00032757,15]
[359535462,1746096642300,-4658.27428866,0.000328,2]
[359535464,1746096642310,-760.0,0.00032876,7]
[359535466,1746096642319,-150.0,0.00032876,2]
[359535468,1746096642329,-210.26524446,0.00032877,50]
[359535470,1746096642338,-331.98,0.00032877,2]
[359535472,1746096642348,-176.59,0.00032877,30]
[359535474,1746096642357,-231.0,0.00032877,2]
[359535476,1746096642367,-373.27953146,0.000329,2]
[359535478,1746096642376,-204.10556556,0.0003293,30]
[359535480,1746096642385,-3206.96664989,0.00032969,28]
[359535482,1746096642394,-191.42378396,0.00032992,2]
[359535484,1746096642404,-564.03684431,0.00033,120]
[359535486,1746096642413,-4561.98759854,0.00033,2]
[359535488,1746096642422,-650.0,0.00033,2]
[359535490,1746096642432,-213.0,0.00033,2]
[359535492,1746096642442,-264.0,0.0003303,2]
[359535494,1746096642452,-216.8187967,0.000331,2]
[359535496,1746096642461,-1000.0,0.00033165,2]
[359535498,1746096642471,-150.0,0.00033309,2]
[359535500,1746096642480,-1170.33504023,0.000335,2]
[359535502,1746096642490,-151.0,0.00033558,2]
[359535504,1746096642500,-223.0315306,0.00033558,2]
[359535506,1746096642510,-160.0,0.000337,42]
[359535508,1746096642520,-354.905254,0.00033806,2]
[359535511,1746096642531,-3206.96664989,0.00033831,29]
[359535514,1746096642540,-200.0,0.00033835,2]
[359535516,1746096642549,-264.0,0.00034,2]
[359535518,1746096642559,-2033.18940034,0.00034,2]
[359535520,1746096642568,-155.65,0.00034,2]
[359535522,1746096642578,-155.65,0.00034,2]
[359535524,1746096642587,-155.65,0.00034,2]
[359535526,1746096642597,-155.65,0.00034,2]
[359535528,1746096642607,-155.65,0.00034,2]
[359535530,1746096642616,-150.0,0.00034102,2]
[359535532,1746096642626,-354.905254,0.00034229,2]
[359535534,1746096642636,-150.0,0.00034246,2]
[359535536,1746096642645,-1112.69348194,0.00034358,2]
[359535538,1746096642654,-150.0,0.00034548,10]
[359535540,1746096642664,-892.92,0.00034589,2]
[359535542,1746096642673,-354.905254,0.00034651,2]
[359535545,1746096642691,-3206.96664989,0.00034693,31]
[359535547,1746096642707,-160.0,0.000347,45]
[359535550,1746096642727,-150.0,0.00034895,2]
[359535554,1746096642749,-1061.0,0.000349,7]
[359535556,1746096642764,-13389.73962372,0.00034916,30]
[359535559,1746096642783,-151.0,0.00034927,2]
[359535563,1746096642803,-231.28369723,0.00034927,2]
[359535566,1746096642823,-264.0,0.0003496,2]
[359535569,1746096642840,-42326.55731167,0.0003498,2]
[359535572,1746096642861,-154.510879,0.0003498,7]
[359535575,1746096642879,-151.0,0.0003498,7]
[359535578,1746096642893,-177.823338,0.0003498,7]
[359535580,1746096642910,-177.823338,0.0003498,7]
[359535583,1746096642925,-151.0,0.0003498,7]
[359535586,1746096642942,-151.0,0.0003498,7]
[359535588,1746096642958,-151.0,0.0003498,7]
[359535591,1746096642974,-151.0,0.0003498,7]
[359535594,1746096642990,-151.0,0.0003498,7]
[359535597,1746096643008,-573.860945,0.0003498,7]
[359535599,1746096643024,-151.0,0.0003498,7]
[359535602,1746096643043,-151.0,0.0003498,7]
[359535605,1746096643059,-573.860945,0.0003498,7]
[359535607,1746096643075,-151.0,0.0003498,7]
[359535610,1746096643090,-198.713687,0.0003498,7]
[359535613,1746096643106,-198.713687,0.0003498,7]
[359535615,1746096643121,-374.259646,0.0003498,7]
[359535618,1746096643138,-374.259646,0.0003498,7]
[359535621,1746096643153,-157.294617,0.0003498,7]
[359535623,1746096643169,-584.629404,0.0003498,7]
[359535626,1746096643184,-584.629404,0.0003498,7]
[359535628,1746096643201,-132271.92933389,0.00035,2]
[359535631,1746096643216,-228.03168548,0.00035,2]
[359535633,1746096643232,-408.45262932,0.00035,30]
[359535636,1746096643248,-151.0,0.00035,7]
[359535639,1746096643263,-164.189359,0.00035,7]
[359535641,1746096643279,-181.839761,0.00035,7]
[359535644,1746096643296,-151.0,0.00035,7]
[359535646,1746096643312,-700.0,0.00035,2]
[359535649,1746096643327,-151.0,0.00035,7]
[359535652,1746096643343,-151.0,0.00035,7]
[359535654,1746096643360,-151.0,0.00035,7]
[359535657,1746096643376,-220.216538,0.00035,7]
[359535659,1746096643391,-220.216538,0.00035,7]
[359535662,1746096643407,-246.528525,0.00035,7]
[359535666,1746096643422,-810.21,0.00035068,2]
[359535670,1746096643438,-354.905254,0.00035074,2]
[359535673,1746096643455,-354.905254,0.00035496,2]
[359535676,1746096643471,-2620.34,0.000355,7]
[359535678,1746096643487,-1258.55,0.00035504,5]
[359535681,1746096643504,-1236.96,0.00035504,5]
[359535684,1746096643519,-3206.96664989,0.00035555,33]
[359535686,1746096643535,-150.0,0.00035616,2]
[359535689,1746096643551,-150.0,0.00035688,2]
[359535692,1746096643567,-304.67,0.00035693,2]
[359535695,1746096643582,-160.0,0.000357,48]
[359535697,1746096643598,-155.45524774,0.00035737,30]
[359535700,1746096643612,-150.0,0.00035737,30]
[359535702,1746096643627,-673.60517155,0.00035737,30]
[359535705,1746096643642,-359.563825,0.000358,3]
[359535707,1746096643657,-970.92896454,0.000359,2]
[359535710,1746096643672,-33833.20755427,0.0003593,7]
[359535713,1746096643688,-264.0,0.0003593,2]
[359535715,1746096643705,-155.65,0.0003599,2]
[359535718,1746096643721,-183061.3038097,0.00036,2]
[359535721,1746096643736,-6043.4123399,0.00036,2]
[359535723,1746096643752,-151.0,0.00036,7]
[359535726,1746096643768,-281.740845,0.00036,7]
[359535729,1746096643784,-296.478012,0.00036,7]
[359535732,1746096643800,-201.0,0.00036,30]
[359535734,1746096643815,-151.0,0.00036,7]
[359535737,1746096643831,-281.517034,0.00036,7]
[359535739,1746096643846,-281.517034,0.00036,7]
[359535742,1746096643861,-151.0,0.00036,7]
[359535744,1746096643877,-176.406723,0.00036,7]
[359535747,1746096643892,-158.256317,0.00036,7]
[359535750,1746096643908,-1997.025473,0.00036,7]
[359535752,1746096643922,-1997.025473,0.00036,7]
[359535755,1746096643936,-151.0,0.00036,7]
[359535757,1746096643945,-151.0,0.00036,7]
[359535759,1746096643955,-208.642372,0.00036,7]
[359535761,1746096643964,-208.642372,0.00036,7]
[359535784,1746096644183,-151.0,0.00036,7]
[359535788,1746096644206,-308.216953,0.00036,7]
[359535792,1746096644233,-308.216953,0.00036,7]
[359535794,1746096644243,-231.99,0.00036054,4]
[359535796,1746096644252,-2382.0,0.00036159,2]
[359535798,1746096644261,-193.73484558,0.00036296,2]
[359535799,1746096644270,-239.84119403,0.00036296,2]
[359535801,1746096644280,-151.0,0.00036417,7]
[359535803,1746096644289,-3206.96664989,0.00036417,34]
[359535805,1746096644299,-1112.69348194,0.00036444,2]
[359535807,1746096644308,-150.0,0.00036482,2]
[359535809,1746096644317,-1500.0,0.00036498,5]
[359535811,1746096644326,-501.02381,0.00036498,5]
[359535813,1746096644336,-645.9418004,0.00036498,5]
[359535815,1746096644346,-164.50740952,0.00036498,5]
[359535817,1746096644356,-160.0,0.000367,51]
[359535818,1746096644366,-923.0,0.00036809,2]
[359535819,1746096644375,-1340.0,0.00036809,2]
[359535820,1746096644385,-1289.0,0.00036809,2]
[359535821,1746096644394,-797.0,0.00036809,2]
[359535822,1746096644403,-913.0,0.00036809,2]
[359535823,1746096644413,-2070.0,0.00036809,2]
[359535824,1746096644422,-1449.0,0.00036809,2]
[359535825,1746096644432,-580.0,0.00036809,2]
[359535826,1746096644441,-575.0,0.00036809,2]
[359535827,1746096644450,-6750.0,0.00036809,2]
[359535828,1746096644460,-201.076,0.00036809,2]
[359535829,1746096644469,-264.778,0.00036809,2]
[359535830,1746096644480,-878.0,0.00036809,2]
[359535832,1746096644489,-4003.0,0.00036809,2]
[359535834,1746096644499,-885.477,0.00036809,2]
[359535835,1746096644508,-892.92,0.00036853,2]
[359535837,1746096644517,-152.0,0.00036854,3]
[359535839,1746096644527,-264.0,0.000369,2]
[359535841,1746096644536,-884.42612705,0.00036986,60]
[359535843,1746096644546,-150.0,0.00036986,2]
[359535845,1746096644555,-750.0,0.00037,2]
[359535847,1746096644565,-22284.14513703,0.00037008,2]
[359535849,1746096644574,-161.89414524,0.00037013,15]
[359535851,1746096644583,-191.42378396,0.0003718,2]
[359535853,1746096644592,-150.0,0.00037275,2]
[359535855,1746096644602,-3206.96664989,0.00037279,36]
[359535857,1746096644611,-3975.40454564,0.00037376,7]
[359535859,1746096644621,-155.894,0.00037392,2]
[359535861,1746096644630,-150.0,0.00037451,2]
[359535863,1746096644640,-2641.87977231,0.0003749,2]
[359535865,1746096644649,-150.0,0.00037493,2]
[359535867,1746096644659,-4210.05006415,0.0003759,2]
[359535869,1746096644671,-261.86,0.000376,31]
[359535872,1746096644681,-261.86,0.000376,31]
[359535874,1746096644690,-261.86,0.000376,31]
[359535876,1746096644699,-261.86,0.000376,31]
[359535878,1746096644708,-261.86,0.000376,31]
[359535880,1746096644717,-261.86,0.000376,31]
[359535882,1746096644726,-261.86,0.000376,31]
[359535884,1746096644736,-261.86,0.000376,31]
[359535886,1746096644745,-261.86,0.000376,31]
[359535888,1746096644754,-261.86,0.000376,31]
[359535890,1746096644763,-261.86,0.000376,31]
[359535892,1746096644773,-261.86,0.000376,31]
[359535894,1746096644782,-248.71531821,0.00037665,2]
[359535896,1746096644791,-160.0,0.000377,54]
[359535898,1746096644801,-150.0,0.00037716,2]
[359535900,1746096644810,-168.60832689,0.000378,2]
[359535902,1746096644819,-264.0,0.0003786,2]
[359535904,1746096644829,-150.0,0.00037886,2]
[359535906,1746096644838,-150.0,0.00037943,2]
[359535908,1746096644847,-172414.08187874,0.00038,7]
[359535910,1746096644856,-7031.76322372,0.00038,2]
[359535911,1746096644865,-501.03936166,0.00038,30]
[359535914,1746096644875,-151.0,0.00038,7]
[359535915,1746096644884,-151.0,0.00038,7]
[359535917,1746096644893,-177.036285,0.00038,7]
[359535919,1746096644902,-188.73458,0.00038,7]
[359535921,1746096644911,-151.0,0.00038,7]
[359535923,1746096644920,-151.0,0.00038,7]
[359535925,1746096644930,-151.0,0.00038,7]
[359535927,1746096644939,-150.0,0.00038068,2]
[359535929,1746096644948,-883.91875587,0.00038141,2]
[359535931,1746096644957,-3206.96664989,0.00038141,38]
[359535933,1746096644967,-150.0,0.00038298,2]
[359535935,1746096644976,-450.0,0.00038356,18]
[359535937,1746096644985,-450.0,0.00038356,18]
[359535939,1746096644994,-450.0,0.00038356,18]
[359535941,1746096645003,-562.86992183,0.00038356,18]
[359535943,1746096645013,-450.0,0.00038356,18]
[359535945,1746096645022,-450.0,0.00038356,18]
[359535947,1746096645034,-597.87999187,0.00038356,18]
[359535949,1746096645043,-500.0,0.00038356,120]
[359535951,1746096645053,-548.98811405,0.00038356,18]
[359535953,1746096645062,-450.0,0.00038356,18]
[359535955,1746096645071,-450.0,0.00038356,18]
[359535957,1746096645080,-2013.84,0.00038356,18]
[359535959,1746096645090,-568.22430187,0.00038356,18]
[359535961,1746096645099,-450.0,0.00038356,18]
[359535963,1746096645108,-450.0,0.00038356,18]
[359535965,1746096645116,-450.0,0.00038356,18]
[359535967,1746096645126,-450.0,0.00038356,18]
[359535969,1746096645135,-450.0,0.00038356,18]
[359535971,1746096645144,-450.0,0.00038356,18]
[359535973,1746096645154,-366.55369335,0.00038356,18]
[359535975,1746096645163,-450.0,0.00038356,18]
[359535977,1746096645172,-450.0,0.00038356,18]
[359535979,1746096645181,-804.87,0.00038356,18]
[359535981,1746096645192,-598.19304234,0.00038356,18]
[359535983,1746096645201,-450.0,0.00038356,18]
[359535985,1746096645210,-478.72,0.00038356,18]
[359535987,1746096645219,-450.0,0.00038356,18]
[359535988,1746096645230,-450.0,0.00038356,18]
[359535991,1746096645240,-450.0,0.00038356,18]
[359535992,1746096645249,-450.0,0.00038356,18]
[359535994,1746096645259,-450.0,0.00038356,18]
[359535996,1746096645268,-450.0,0.00038356,18]
[359535998,1746096645277,-450.0,0.00038356,18]
[359536000,1746096645287,-450.0,0.00038356,18]
[359536002,1746096645296,-450.0,0.00038356,18]
[359536004,1746096645306,-450.0,0.00038356,18]
[359536006,1746096645315,-598.13598016,0.00038356,18]
[359536008,1746096645324,-599.7096465,0.00038356,18]
[359536010,1746096645333,-450.0,0.00038356,18]
[359536012,1746096645343,-450.0,0.00038356,18]
[359536014,1746096645352,-450.0,0.00038356,18]
[359536016,1746096645363,-450.0,0.00038356,18]
[359536018,1746096645372,-450.0,0.00038356,18]
[359536020,1746096645381,-544.2462309,0.00038356,18]
[359536022,1746096645390,-450.0,0.00038356,18]
[359536024,1746096645401,-450.0,0.00038356,18]
[359536026,1746096645411,-450.0,0.00038356,18]
[359536028,1746096645419,-450.0,0.00038356,18]
[359536030,1746096645428,-450.0,0.00038356,18]
[359536032,1746096645438,-450.0,0.00038356,18]
[359536034,1746096645450,-450.0,0.00038356,18]
[359536036,1746096645459,-450.0,0.00038356,18]
[359536038,1746096645469,-542.85638833,0.00038356,18]
[359536040,1746096645482,-450.0,0.00038356,18]
[359536043,1746096645492,-450.0,0.00038356,18]
[359536045,1746096645501,-450.0,0.00038356,18]
[359536047,1746096645510,-450.0,0.00038356,18]
[359536049,1746096645520,-547.01305704,0.00038356,18]
[359536051,1746096645530,-235.51542188,0.00038356,18]
[359536053,1746096645539,-576.22,0.00038356,18]
[359536055,1746096645549,-530.0,0.00038356,18]
[359536057,1746096645558,-517.2585811,0.00038356,18]